Workbook

Sheet 0000 (hidden)

Sheet 00000044
B1: 2012 GAS UNIT COSTS
B2: AVISTA UTILITIES
C5: HANDY-WHITMAN INDEX
A6: 10 | B6: 10 | C6: 11 | D6: 11 | E6: 12 | F6: 12 | G6: 13
A7: Jan'10 | B7: Jul'10 | C7: Jan'11 | D7: Jul'11 | E7: Jan'12 | F7: Jul'12 | G7: Jan'13
A9: 682 | B9: 711 | C9: 757 | D9: 774 | E9: 870 | F9: 863 | G9: 862 | H9: =((E9+F9+F9+G9)/4)/((C9+D9+D9+E9)/4) -> 1.089133858 | I9: MAINS STEEL
A10: 491 | B10: 491 | C10: 499 | D10: 506 | E10: 524 | F10: 531 | G10: 532 | H10: =((E10+F10+F10+G10)/4)/((C10+D10+D10+E10)/4) -> 1.040786241 | I10: MAINS PLASTIC
A11: 573 | B11: 583 | C11: 608 | D11: 616 | E11: 662 | F11: 661 | G11: 665 | H11: =((E11+F11+F11+G11)/4)/((C11+D11+D11+E11)/4) -> 1.058752998 | I11: SVS STEEL
A12: 529 | B12: 529 | C12: 544 | D12: 547 | E12: 565 | F12: 569 | G12: 575 | H12: =((E12+F12+F12+G12)/4)/((C12+D12+D12+E12)/4) -> 1.034044485 | I12: SVS PLASTIC
M13: yellow is input area
H15: 2011 | J15: 2012 | K15: 2012
D16: Ret. | G16: 2012 | H16: EST | I16: ADJ. | J16: EST | K16: EST | M16: 2012 | N16: 2012
C17: TYPE | D17: Code | E17: SIZE | F17: TYPE | G17: FEET | H17: COST/FT | I17: FACTOR | J17: COST/FT | K17: COST | L17: % | M17: ADDITIONS | N17: COST/FT
A19: Wash. & Idaho | C19: MAIN
D20: 17004 | E20: 3/4" | F20: PE | H20: 14.23191718 | I20: =H10 -> 1.040786241 | J20: =H20*I20 -> 14.81238358 | K20: =G20*J20 -> 0 | L20: =K20/$K$33 -> 0 | M20: =L20*$M$33 -> 0 | N20: =IF(M20=0,0,M20/G20) -> 0
D21: 17006 | E21: 3/4" | F21: STL | H21: 20.80054965 | I21: =H9 -> 1.089133858 | J21: 22.65458289 | K21: 0 | L21: 0 | M21: 0 | N21: 0
D22: 17016 | E22: 1 1/4" | F22: PE | H22: 14.23191718 | I22: =H10 -> 1.040786241 | J22: 14.81238358 | K22: 0 | L22: 0 | M22: 0 | N22: 0
D23: 17017 | E23: 1 1/4" | F23: STL | H23: 14.70880759 | I23: =H9 -> 1.089133858 | J23: 16.01986036 | K23: 0 | L23: 0 | M23: 0 | N23: 0
D24: 17020 | E24: 2" | F24: PE | G24: ='[1]Mains & Services installed'!$I$9 -> 37453 | H24: 24.07415312 | I24: =H10 -> 1.040786241 | J24: 25.05604733 | K24: 938424.1406 | L24: 0.2763722568 | M24: 2029770.458 | N24: 54.19513678
D25: 17025 | E25: 2" | F25: STL | G25: ='[1]Mains & Services installed'!$I$10 -> 0 | H25: 19.00519799 | I25: =H9 -> 1.089133858 | J25: 20.69920461 | K25: 0 | L25: 0 | M25: 0 | N25: 0
D26: 17030 | E26: 3" | F26: PE | G26: ='[1]Mains & Services installed'!$I$11 -> 0 | H26: 17.74556634 | I26: =H10 -> 1.040786241 | J26: 18.46934128 | K26: 0 | L26: 0 | M26: 0 | N26: 0
D27: 17040 | E27: 4" | F27: PE | G27: ='[1]Mains & Services installed'!$I$13 -> 0 | H27: 28.46383436 | I27: =H10 -> 1.040786241 | J27: 29.62476716 | K27: 0 | L27: 0 | M27: 0 | N27: 0
D28: 17045 | E28: 4" | F28: STL | G28: ='[1]Mains & Services installed'!$I$14 -> 0 | H28: 33.95235503 | I28: =H9 -> 1.089133858 | J28: =H28*I28 -> 36.97865943 | K28: =G28*J28 -> 0 | L28: 0 | M28: 0 | N28: =IF(M28=0,0,M28/G28) -> 0
D29: 17060 | E29: 6" | F29: PE | G29: ='[1]Mains & Services installed'!$I$15 -> 42436 | H29: 43.12298102 | I29: =H10 -> 1.040786241 | J29: 44.88180531 | K29: 1904604.29 | L29: 0.5609188459 | M29: 4119575.951 | N29: 97.07738598
D30: 17065 | E30: 6" | F30: STL | G30: ='[1]Mains & Services installed'!$I$16 -> 15576 | H30: 32.56708072 | I30: =H9 -> 1.089133858 | J30: 35.46991027 | K30: 552479.3224 | L30: 0.1627088973 | M30: 1194988.661 | N30: 76.7198678
D31: 17085 | E31: 8" | F31: STL | G31: ='[1]Mains & Services installed'!$I$17 -> 0 | H31: 55.03277319 | I31: =H9 -> 1.089133858 | J31: 59.9380566 | K31: 0 | L31: 0 | M31: 0 | N31: 0
D32: 17125 | E32: 12" | F32: STL | G32: ='[1]Mains & Services installed'!$I$18 -> 0 | H32: 1087.241707 | I32: =H9 -> 1.089133858 | J32: 1184.151755 | K32: 0 | L32: 0 | M32: 0 | N32: 0
G33: =SUM(G20:G32) -> 95465 | K33: =SUM(K20:K32) -> 3395507.753 | L33: =SUM(L20:L32) -> 1 | M33: 7344335.07
A36: Wash. & Idaho | C36: SERVICE | D36: 18000 | E36: 1/2" | F36: PE | H36: 11.52485376 | I36: =H12 -> 1.034044485 | J36: =H36*I36 -> 11.91721147 | K36: =G36*J36 -> 0 | L36: =K36/$K$49 -> 0 | M36: =L36*$M$49 -> 0 | N36: =IF(M36=0,0,M36/G36) -> 0
D37: 18004 | E37: 3/4" | F37: PE | G37: ='[1]Mains & Services installed'!$J$46 -> 215615 | H37: 11.63977168 | I37: =H12 -> 1.034044485 | J37: 12.03604171 | K37: 2595151.134 | L37: 0.9951069137 | M37: 5532251.57 | N37: 25.65800881
D38: 18006 | E38: 3/4" | F38: STL | G38: ='[1]Mains & Services installed'!$J$47 -> 0 | H38: 15.9552783 | I38: =H11 -> 1.058752998 | J38: 16.89269872 | K38: 0 | L38: 0 | M38: 0 | N38: 0
D39: 18016 | E39: 1 1/4" | F39: PE | H39: 12.18154612 | I39: =H12 -> 1.034044485 | J39: 12.59626059 | K39: 0 | L39: 0 | M39: 0 | N39: 0
D40: 18017 | E40: 1 1/4: | F40: STL(1) | H40: 17.91385434 | I40: =H11 -> 1.058752998 | J40: =H40*I40 -> 18.96634698 | K40: 0 | L40: 0 | M40: 0 | N40: 0
D41: 18020 | E41: 2" | F41: PE | G41: ='[1]Mains & Services installed'!$J$51 -> 82 | H41: 12.73972815 | I41: =H12 -> 1.034044485 | J41: 13.17344563 | K41: 1080.222542 | L41: 0.0004142097566 | M41: 2302.780279 | N41: 28.08268633
D42: 18025 | E42: 2" | F42: STL | G42: ='[1]Mains & Services installed'!$J$52 -> 548 | H42: 19.20365801 | I42: =H11 -> 1.058752998 | J42: 20.33193048 | K42: 11141.89791 | L42: 0.004272344485 | M42: 23751.9046 | N42: 43.34289161
D43: 18030 | E43: 3" | F43: PE | G43: 0 | H43: 19.81553328 | I43: =H12 -> 1.034044485 | J43: 20.4901429 | K43: 0 | L43: 0 | M43: 0 | N43: 0
D44: 18040 | E44: 4" | F44: PE | G44: ='[1]Mains & Services installed'!$J$54 -> 24 | H44: 21.70350762 | I44: =H12 -> 1.034044485 | J44: 22.44239235 | K44: 538.6174165 | L44: 0.000206532062 | M44: 1148.205593 | N44: 47.84189972
D45: 18045 | E45: 4" | F45: STL | G45: ='[1]Mains & Services installed'!$J$55 -> 377 | H45: 33.74491893 | I45: =H11 -> 1.058752998 | J45: =H45*I45 -> 35.72753407 | K45: =G45*J45 -> 13469.28034 | L45: 0.005164775883 | M45: 28713.33632 | N45: =IF(M45=0,0,M45/G45) -> 76.16269581
D46: 18060 | E46: 6" | F46: PE | G46: 0 | H46: 17.78231311 | I46: =H12 -> 1.034044485 | J46: 18.3877028 | K46: 0 | L46: 0 | M46: 0 | N46: 0
D47: 18065 | E47: 6" | F47: STL | G47: ='[1]Mains & Services installed'!$J$57 -> 85 | H47: 26.42449148 | I47: =H11 -> 1.058752998 | J47: 27.97700956 | K47: 2378.045813 | L47: 0.000911858195 | M47: 5069.434109 | N47: 59.64040129
D48: 18085 | E48: 8" | F48: STL | G48: 0 | H48: 1258.175985 | I48: =H11 -> 1.058752998 | J48: 1332.097596 | K48: 0 | L48: 0 | M48: 0 | N48: 0
G49: =SUM(G36:G48) -> 216731 | K49: =SUM(K36:K44) -> 2607911.872 | L49: =SUM(L36:L44) -> 1 | M49: 5559454.46
A52: Oregon | C52: MAIN
C53: by footage | D53: 27004 | E53: 3/4" | F53: PE | H53: 14.44144375 | I53: =H10 -> 1.040786241 | J53: =H53*I53 -> 15.03045595 | K53: =G53*J53 -> 0 | L53: =K53/$K$65 -> 0 | M53: =L53*$M$65 -> 0 | N53: =IF(M53=0,0,M53/G53) -> 0
D54: 27006 | E54: 3/4" | F54: STL | H54: 21.0782315 | I54: =H9 -> 1.089133858 | J54: =H54*I54 -> 22.9570156 | K54: 0 | L54: 0 | M54: 0 | N54: 0
D55: 27016 | E55: 1 1/4" | F55: PE | H55: 14.44144375 | I55: =H10 -> 1.040786241 | J55: =H55*I55 -> 15.03045595 | K55: 0 | L55: 0 | M55: 0 | N55: 0
D56: 27017 | E56: 1 1/4" | F56: STL | H56: 28.65761673 | I56: =H9 -> 1.089133858 | J56: =H56*I56 -> 31.21198068 | K56: 0 | L56: 0 | M56: 0 | N56: 0
D57: 27020 | E57: 2" | F57: PE | G57: ='[1]Mains & Services installed'!$I$31 -> 31763 | H57: 24.4161854 | I57: =H10 -> 1.040786241 | J57: =H57*I57 -> 25.41202982 | K57: 807162.3031 | L57: 0.4084888708 | M57: 1663934.69 | N57: 52.38594244
D58: 27025 | E58: 2" | F58: STL | G58: ='[1]Mains & Services installed'!$I$32 -> 6128 | H58: 19.2835437 | I58: =H9 -> 1.089133858 | J58: =H58*I58 -> 21.00236035 | K58: 128702.4642 | L58: 0.06513377058 | M58: 265315.283 | N58: 43.2955749
D59: 27030 | E59: 3" | F59: PE | G59: ='[1]Mains & Services installed'!$I$33 -> 9123 | H59: 18.00344718 | I59: =H10 -> 1.040786241 | J59: 18.73774011 | K59: 170944.4031 | L59: 0.08651158002 | M59: 352395.449 | N59: 38.62714557
D60: 27040 | E60: 4" | F60: PE | G60: ='[1]Mains & Services installed'!$I$34 -> 0 | H60: 28.8828875 | I60: =H10 -> 1.040786241 | J60: 30.06091191 | K60: 0 | L60: 0 | M60: 0 | N60: 0
D61: 27045 | E61: 4" | F61: STL | G61: ='[1]Mains & Services installed'!$I$35 -> 513 | H61: 34.40672675 | I61: =H9 -> 1.089133858 | J61: =H61*I61 -> 37.47353106 | K61: =G61*J61 -> 19223.92143 | L61: 0.009728846265 | M61: 39629.39005 | N61: =IF(M61=0,0,M61/G61) -> 77.250273
D62: 27060 | E62: 6" | F62: PE | G62: ='[1]Mains & Services installed'!$I$36 -> 10775 | H62: 43.7018098 | I62: =H10 -> 1.040786241 | J62: =H62*I62 -> 45.48424234 | K62: 490092.7112 | L62: 0.248026224 | M62: 1010307.667 | N62: 93.76405262
D63: 27065 | E63: 6" | F63: STL | G63: ='[1]Mains & Services installed'!$I$37 -> 9826 | H63: 33.0309985 | I63: =H9 -> 1.089133858 | J63: 35.97517884 | K63: 353492.1073 | L63: 0.1788953612 | M63: 728710.6664 | N63: 74.16147633
D64: 27085 | E64: 8" | F64: STL | G64: ='[1]Mains & Services installed'!$I$38 -> 106 | H64: 55.03277319 | I64: =H9 -> 1.089133858 | J64: =H64*I64 -> 59.9380566 | K64: 6353.433999 | L64: 0.003215347235 | M64: 13097.36491 | N64: 123.5600464
G65: =SUM(G53:G64) -> 68234 | K65: =SUM(K53:K64) -> 1975971.344 | L65: =SUM(L53:L64) -> 1 | M65: 4073390.51
A67: Oregon | C67: SERVICE * | N67: COST/EACH
C68: by quantity | D68: 28000 | E68: 1/2" | F68: PE | H68: 0 | I68: =H12 -> 1.034044485 | J68: =H68*I68 -> 0 | K68: =G68*J68 -> 0 | L68: =K68/$K$77 -> 0 | M68: =L68*$M$77 -> 0 | N68: =IF(M68=0,0,M68/G68) -> 0
D69: 28004 | E69: 3/4" | F69: PE | G69: ='[1]Mains & Services installed'!$H$66 -> 1335 | H69: 702.519562 | I69: =H12 -> 1.034044485 | J69: 726.4364785 | K69: 969792.6988 | L69: =K69/$K$77 -> 0.9747550431 | M69: =L69*$M$77 -> 1049567.922 | N69: 786.1931996
D70: 28006 | E70: 3/4" | F70: STL | G70: ='[1]Mains & Services installed'!$H$67 -> 0 | H70: 0 | I70: =H11 -> 1.058752998 | J70: 0 | K70: 0 | L70: 0 | M70: 0 | N70: 0
D71: 28015 | E71: 1" | F71: STL | G71: =-'[1]Mains & Services installed'!$H$68 -> 0 | H71: 735.3347398 | I71: =H12 -> 1.034044485 | J71: 760.3688322 | K71: 0 | L71: 0 | M71: 0 | N71: 0
D72: 28020 | E72: 2" | F72: PE | G72: ='[1]Mains & Services installed'!$H$69+'[1]Mains & Services installed'!$H$71 -> 19 | H72: 768.1499177 | I72: =H12 -> 1.034044485 | J72: 794.3011859 | K72: 15091.72253 | L72: 0.01516894555 | M72: 16333.1688 | N72: 859.6404631
D73: 28025 | E73: 2" | F73: STL | G73: ='[1]Mains & Services installed'!$H$70+'[1]Mains & Services installed'!$H$72 -> 2 | H73: 1125.077701 | I73: =H11 -> 1.058752998 | J73: 1191.179388 | K73: 2382.358776 | L73: 0.002394549097 | M73: 2578.331794 | N73: 1289.165897
D74: 28035 | E74: 3" | F74: STL | G74: ='[1]Mains & Services installed'!$H$73 -> 0 | H74: 0 | I74: =H12 -> 1.034044485 | J74: 0 | K74: =G74*J74 -> 0 | L74: 0 | M74: 0 | N74: =IF(M74=0,0,M74/G74) -> 0
D75: 28040 | E75: 4" | F75: PE | G75: ='[1]Mains & Services installed'!$H$74 -> 2 | H75: 1309.665153 | I75: =H12 -> 1.034044485 | J75: 1354.252029 | K75: 2708.504057 | L75: 0.002722363235 | M75: 2931.305811 | N75: 1465.652906
D76: 28045 | E76: 4" | F76: STL | G76: ='[1]Mains & Services installed'!$H$75 -> 1 | H76: 4771.412678 | I76: =H12 -> 1.034044485 | J76: 4933.852964 | K76: =G76*J76 -> 4933.852964 | L76: 0.004959099057 | M76: 5339.712092 | N76: =IF(M76=0,0,M76/G76) -> 5339.712092
G77: =SUM(G68:G76) -> 1359 | K77: =SUM(K68:K76) -> 994909.1371 | L77: =SUM(L68:L75) -> 0.9950409009 | M77: 1076750.44
C79: * 76FT AVG IS FROM DOT ANNUAL REPORT FOR OR
C81: feet and services entered from Main and Services Installed report should be entered as absolute values, not negative.
